Date,Procurement Category,Purpose of Spend,Department,Amount,Beneficiary
02/04/2020,Transport Related Expenditure,Repairs and Maintenance - Transport,Transport Maintenance,-13.95,FRUUGO
02/04/2020,Transport Related Expenditure,Repairs and Maintenance - Transport,Transport Maintenance,13.88,SCREWFIX LEIGH
03/04/2020,"Supplies, Services & Other Expenses",Subsistence,Youth Engagement,9.30,WM MORRISONS STORE
03/04/2020,"Supplies, Services & Other Expenses",Subsistence,Youth Engagement,9.00,WM MORRISONS STORE
03/04/2020,"Supplies, Services & Other Expenses",Subsistence,Youth Engagement,10.48,TESCO STORES 2142
03/04/2020,"Supplies, Services & Other Expenses",Subsistence,Youth Engagement,28.59,ASDA SUPERSTORE
06/04/2020,Transport Related Expenditure,Officers Travel & Subsistence,Service Support,11.00,NCP LIMITED
06/04/2020,Transport Related Expenditure,Officers Travel & Subsistence,Service Support,7.30,NCP LIMITED
06/04/2020,Transport Related Expenditure,Officers Travel & Subsistence,Service Support,7.30,NCP LIMITED
08/04/2020,Transport Related Expenditure,Officers Travel & Subsistence,Manchester Arena Public Inquiry,20.20,NCP LIMITED
08/04/2020,"Supplies, Services & Other Expenses",Stationery,Bolton & Wigan Borough Command,10.49,Amazon.co.uk LZ20A6SP5
08/04/2020,"Supplies, Services & Other Expenses",Subsistence,Manchester Arena Public Inquiry,4.25,GREGGS
08/04/2020,"Supplies, Services & Other Expenses",Other Communications Equipment,Offerton,10.00,O2 UK PAY & GO
09/04/2020,Premises Related Expenditure,Fixtures & Fittings,Bury,23.78,GARRAN LOCKERS LTD
09/04/2020,Transport Related Expenditure,Officers Travel & Subsistence,Fire Legal & Policy,7.30,NCP LIMITED
09/04/2020,Transport Related Expenditure,Officers Travel & Subsistence,Stalybridge,6.00,NCP LIMITED
09/04/2020,"Supplies, Services & Other Expenses",Kitchen Equipment,Leigh,44.00,TESCO STORES 2701
09/04/2020,"Supplies, Services & Other Expenses",Operational Equipment Non-Consumables,Operations Support,11.98,AMZNMktplace
09/04/2020,"Supplies, Services & Other Expenses",Operational Equipment Non-Consumables,Operations Support,57.97,AMZNMktplace
09/04/2020,"Supplies, Services & Other Expenses",Subsistence,Stalybridge,5.85,GREGGS PLC
09/04/2020,"Supplies, Services & Other Expenses",Subsistence,Bury,167.20,MCDONALDS
13/04/2020,"Supplies, Services & Other Expenses",Computer Software,ICT Technology,15.72,1 AND 1 IONOS LTD
14/04/2020,"Supplies, Services & Other Expenses",Office Equipment,Manchester Borough Command,24.95,AMZNMktplace
15/04/2020,"Supplies, Services & Other Expenses",Office Equipment,Operational Training,24.87,AMZNMKTPLACE AMAZON.CO
15/04/2020,"Supplies, Services & Other Expenses",Cleaning Equipment,Operational Training,4.29,AMZNMktplace
15/04/2020,"Supplies, Services & Other Expenses",Operational Equipment Consumables,Operational Training,3.54,AMZNMktplace
15/04/2020,Transport Related Expenditure,Repairs and Maintenance - Transport,Transport Maintenance,6.00,TESCO STORES 5731
15/04/2020,Indirect Employee Allowances,Other Training Expenses,Talent Learning & Resourcing,99.90,ARGOS LTD
15/04/2020,Indirect Employee Allowances,Other Training Expenses,Talent Learning & Resourcing,-9.99,ARGOS LTD
15/04/2020,Indirect Employee Allowances,Training Course Fees,Operational Training,400.00,DSA THEORY TEST
15/04/2020,Indirect Employee Allowances,Recruitment,Talent Learning & Resourcing,40.00,FACEBK MCCWDQNBK2
15/04/2020,"Supplies, Services & Other Expenses",Detection Identification and Monitoring,Resilience,25.45,Bake N Butties
15/04/2020,"Supplies, Services & Other Expenses",Subsistence,Contingency Planning,13.29,TABLE TABLE41012915
15/04/2020,"Supplies, Services & Other Expenses",Subsistence,Resilience,39.92,MCDONALDS 876
16/04/2020,Transport Related Expenditure,Repairs and Maintenance - Transport,Transport Maintenance,44.27,Amazon.co.uk 4143Y6A05
16/04/2020,Transport Related Expenditure,Repairs and Maintenance - Transport,Transport Maintenance,53.85,PAYPAL  12VOLTPLANE
16/04/2020,Transport Related Expenditure,Repairs and Maintenance - Transport,Transport Maintenance,156.08,PAYPAL  MAES LTD
16/04/2020,Transport Related Expenditure,Repairs and Maintenance - Transport,Transport Maintenance,17.95,AMZNMKTPLACE AMAZON.CO
16/04/2020,Transport Related Expenditure,Repairs and Maintenance - Transport,Transport Maintenance,7.99,Amazon Prime WW8LY3N55
16/04/2020,Transport Related Expenditure,Repairs and Maintenance - Transport,Transport Maintenance,12.99,AMZNMktplace
16/04/2020,Transport Related Expenditure,Repairs and Maintenance - Transport,Business Continuity,19.14,AMZNMktplace
16/04/2020,Transport Related Expenditure,Repairs and Maintenance - Transport,Business Continuity,51.42,AMZNMktplace
16/04/2020,Transport Related Expenditure,Repairs and Maintenance - Transport,Business Continuity,9.57,AMZNMktplace
16/04/2020,Transport Related Expenditure,Repairs and Maintenance - Transport,Business Continuity,104.90,AMZNMktplace
16/04/2020,Transport Related Expenditure,Repairs and Maintenance - Transport,Transport Maintenance,16.99,AMZNMKTPLACE AMAZON.CO
16/04/2020,Transport Related Expenditure,Repairs and Maintenance - Transport,Transport Maintenance,5.49,AMZNMktplace
16/04/2020,Transport Related Expenditure,Repairs and Maintenance - Transport,Transport Maintenance,49.98,AMZNMKTPLACE AMAZON.CO
16/04/2020,Transport Related Expenditure,Repairs and Maintenance - Transport,Transport Maintenance,10.95,AMZNMKTPLACE AMAZON.CO
16/04/2020,"Supplies, Services & Other Expenses",Computer Hardware,ICT Technology,29.98,AMZNMktplace
16/04/2020,"Supplies, Services & Other Expenses",Computer Hardware,ICT Technology,74.95,AMZNMktplace
16/04/2020,"Supplies, Services & Other Expenses",Computer Hardware,ICT Technology,149.70,Amazon.co.uk ML2IN3YV5
17/04/2020,Premises Related Expenditure,Responsive Repairs & Maintenance,FSHQ Running Costs,39.98,SCREWFIX SALFORD
17/04/2020,"Supplies, Services & Other Expenses",Stationery,Business Continuity,5.99,Amazon.co.uk TH5QR59T5
17/04/2020,"Supplies, Services & Other Expenses",Computer Hardware,Business Continuity,139.99,CURRYS ONLINE
17/04/2020,"Supplies, Services & Other Expenses",Subsistence,Business Continuity,26.99,AMZNMKTPLACE AMAZON.CO
17/04/2020,"Supplies, Services & Other Expenses",Subsistence,Corporate Support,29.99,AMZNMKTPLACE AMAZON.CO
17/04/2020,"Supplies, Services & Other Expenses",Periodicals & Magazines,Operational Training,7.99,Amazon Prime 6P8647G65
17/04/2020,"Supplies, Services & Other Expenses",Periodicals & Magazines,Operational Training,44.90,Amazon.co.uk M46952PL5
17/04/2020,"Supplies, Services & Other Expenses",Operational Equipment Consumables,Operational Training,3.99,AMZNMktplace
17/04/2020,"Supplies, Services & Other Expenses",Operational Equipment Non-Consumables,Operational Training,44.90,AMZNMKTPLACE AMAZON.CO
17/04/2020,"Supplies, Services & Other Expenses",Operational Equipment Non-Consumables,Operational Training,10.99,AMZNMktplace
17/04/2020,"Supplies, Services & Other Expenses",Operational Equipment Non-Consumables,Operational Training,40.99,AMZNMktplace
17/04/2020,Transport Related Expenditure,Officers Travel & Subsistence,Operational Training,6.70,M6 TOLL
17/04/2020,Transport Related Expenditure,Officers Travel & Subsistence,Operational Training,16.00,RADISSION BLU EDW
17/04/2020,Premises Related Expenditure,Waste Site Responsive,Waste - Engineering,58.58,BRIAN S POPE LTD
17/04/2020,Premises Related Expenditure,Responsive Repairs & Maintenance,FSHQ Running Costs,5.67,Amazon.co.uk U060B99L5
17/04/2020,"Supplies, Services & Other Expenses",Subsistence,Bury Training and Safety Centre,58.25,W M MORRISONS.COM
17/04/2020,"Supplies, Services & Other Expenses",Subsistence,Operational Training,21.80,THE ROYAL OAK
17/04/2020,Transport Related Expenditure,Officers Travel & Subsistence,Brigade Property Services,7.30,NCP LIMITED
17/04/2020,Transport Related Expenditure,Officers Travel & Subsistence,CFS Stockport and Tameside,4.50,NCP LIMITED
17/04/2020,Transport Related Expenditure,Officers Travel & Subsistence,CFS Stockport and Tameside,4.50,NCP LIMITED
17/04/2020,"Supplies, Services & Other Expenses",Office Equipment,Bury Training and Safety Centre,21.98,AMZNMktplace
17/04/2020,"Supplies, Services & Other Expenses",Periodicals & Magazines,Fire Safety Admin code,175.00,WWW.APEA.ORG.UK
17/04/2020,"Supplies, Services & Other Expenses",Stationery,FSHQ Fire Safety,95.92,AMZNMktplace
17/04/2020,"Supplies, Services & Other Expenses",Stationery,Fire Safety Admin code,29.56,Amazon.co.uk V82594ZA5
17/04/2020,"Supplies, Services & Other Expenses",Stationery,Planning and Housing,191.00,WWW.INSIDEHOUSING.CO.U
17/04/2020,"Supplies, Services & Other Expenses",Stationery,Planning and Housing,191.00,WWW.INSIDEHOUSING.CO.U
17/04/2020,"Supplies, Services & Other Expenses",Stationery,"CFS Bury,Rochdale and Oldham",28.00,Amazon.co.uk MA93P4SE4
17/04/2020,"Supplies, Services & Other Expenses",Subsistence,CFS Manchester,31.60,Amazon.co.uk 648QU8U45
17/04/2020,"Supplies, Services & Other Expenses",Subsistence,CFS Salford and Trafford,38.40,AMZNMKTPLACE AMAZON.CO
17/04/2020,"Supplies, Services & Other Expenses",Research and Development,Fire Investigation,24.91,AMZNMktplace
17/04/2020,"Supplies, Services & Other Expenses",Research and Development,Fire Investigation,34.98,Klarna  clasohlson com
17/04/2020,"Supplies, Services & Other Expenses",Research and Development,Fire Investigation,399.00,Jessops
17/04/2020,"Supplies, Services & Other Expenses",Subsistence,CFS Stockport and Tameside,8.00,HALFORDS 0596
17/04/2020,"Supplies, Services & Other Expenses",Subsistence,Catering Services - LTS,25.99,AMZNMktplace
17/04/2020,"Supplies, Services & Other Expenses",Fire Safety,P & P Innovation & Partnership Projects,240.00,Village Hotel Bury
17/04/2020,"Supplies, Services & Other Expenses",Fire Safety,P & P Innovation & Partnership Projects,264.00,Village Hotel Bury
17/04/2020,Indirect Employee Allowances,Recruitment,ICT Technology,298.80,WWW.TOTALJOBS.COM
20/04/2020,Premises Related Expenditure,Programmed Repairs & Maintenance,Covid 19 - Temporary Resting Place,256.56,DELTA SERVICES GB
20/04/2020,Premises Related Expenditure,Fixtures & Fittings,OBR Borough Command,189.98,ARGOS OLDHAM TOWN
20/04/2020,"Supplies, Services & Other Expenses",Stationery,Farnworth,6.49,AMZNMktplace
20/04/2020,Transport Related Expenditure,Officers Travel & Subsistence,Finance - Accountancy,7.00,METROLINK TVM
20/04/2020,"Supplies, Services & Other Expenses",Digital,Waste - Behavioural Change,19.55,MAILCHIMP    MONTHLY
20/04/2020,"Supplies, Services & Other Expenses",Subsistence,Whitehill,8.13,TESCO GARAGE 5082
21/04/2020,Transport Related Expenditure,Officers Travel & Subsistence,Mayors Office,11.00,CMT UK LTD TAXI FARE
21/04/2020,Transport Related Expenditure,Officers Travel & Subsistence,Mayors Office,8.00,PEEL MEDIA - CAR PARK
21/04/2020,Transport Related Expenditure,Officers Travel & Subsistence,Mayors Office,13.20,CMT UK LTD TAXI FARE
21/04/2020,Transport Related Expenditure,Officers Travel & Subsistence,Mayors Office,13.00,CABVISION NETWORK
21/04/2020,Transport Related Expenditure,Officers Travel & Subsistence,Mayors Office,10.00,CMT UK LTD TAXI FARE
21/04/2020,Transport Related Expenditure,Officers Travel & Subsistence,Mayors Office,17.82,CITYFLEET DAC ST
21/04/2020,Transport Related Expenditure,Officers Travel & Subsistence,Mayors Office,6.60,Q PARK DEANSGATE NORTH
21/04/2020,Transport Related Expenditure,Officers Travel & Subsistence,Mayors Office,20.20,NCP LIMITED
21/04/2020,Transport Related Expenditure,Officers Travel & Subsistence,Mayors Office,9.00,WARRINGTON BQ CAR PARK
21/04/2020,Transport Related Expenditure,Officers Travel & Subsistence,Mayors Office,3.00,UNIVERSITY OF MANCHEST
21/04/2020,Transport Related Expenditure,Officers Travel & Subsistence,Mayors Office,3.00,NCP LIMITED
21/04/2020,"Supplies, Services & Other Expenses",Subsistence,Mayors Office,6.06,HOC CRS
21/04/2020,"Supplies, Services & Other Expenses",Subsistence,Mayors Office,132.90,THE PRINCIPAL MANCHEST
21/04/2020,"Supplies, Services & Other Expenses",Subsistence,Mayors Office,81.90,HOTEL DU VIN
21/04/2020,"Supplies, Services & Other Expenses",Subsistence,Mayors Office,29.20,Novotel Hotels
21/04/2020,"Supplies, Services & Other Expenses",Subsistence,Mayors Office,11.55,M&S SIMPLY FOOD - SSP
21/04/2020,"Supplies, Services & Other Expenses",Subsistence,Mayors Office,39.35,FRANCO MANCA
21/04/2020,"Supplies, Services & Other Expenses",Postage,Corporate Support,13.68,THE POST OFFICE
21/04/2020,"Supplies, Services & Other Expenses",Professional Fees,Mayors Office,23.00,DISCLOSURE AND BARRING
21/04/2020,Transport Related Expenditure,Repairs and Maintenance - Transport,Transport Maintenance,28.62,www.lsengineers.co.uk
22/04/2020,Transport Related Expenditure,Officers Travel & Subsistence,Stalybridge,6.00,NCP LIMITED
22/04/2020,"Supplies, Services & Other Expenses",Digital,Waste - Behavioural Change,195.09,FACEBK  HG7MMS23R2
22/04/2020,Transport Related Expenditure,Repairs and Maintenance - Transport,Transport Maintenance,94.97,www.lsengineers.co.uk
22/04/2020,Indirect Employee Allowances,Training Course Fees,Democratic Services,450.00,EB  MENOPAUSE LIVE CON
23/04/2020,Transport Related Expenditure,Officers Travel & Subsistence,Fire Corporate Leadership Team,474.00,WWW.LOCAL.GOV.UK
23/04/2020,Transport Related Expenditure,Officers Travel & Subsistence,Emergency Response Management,6.19,PP MSTEWART
23/04/2020,Transport Related Expenditure,Officers Travel & Subsistence,Service Support,7.30,NCP LIMITED
23/04/2020,Transport Related Expenditure,Officers Travel & Subsistence,Fire Corporate Leadership Team,7.30,NCP LIMITED
23/04/2020,Transport Related Expenditure,Officers Travel & Subsistence,Fire Corporate Leadership Team,7.30,NCP LIMITED
23/04/2020,Transport Related Expenditure,Officers Travel & Subsistence,Fire Corporate Leadership Team,7.30,NCP LIMITED
23/04/2020,Transport Related Expenditure,Officers Travel & Subsistence,Fire Corporate Leadership Team,7.30,NCP LIMITED
23/04/2020,"Supplies, Services & Other Expenses",Subsistence,Fire Corporate Leadership Team,29.00,BLACKPOOL HOTEL
23/04/2020,"Supplies, Services & Other Expenses",Subsistence,Emergency Response Management,7.35,COSTA COFFEE
23/04/2020,"Supplies, Services & Other Expenses",Subsistence,Fire Corporate Leadership Team,60.00,FLOWERS BY JEMMA HOLME
23/04/2020,Transport Related Expenditure,Officers Travel & Subsistence,Fire Corporate Leadership Team,7.30,NCP LIMITED
23/04/2020,Transport Related Expenditure,Officers Travel & Subsistence,Fire Corporate Leadership Team,7.30,NCP LIMITED
23/04/2020,Transport Related Expenditure,Officers Travel & Subsistence,Fire Corporate Leadership Team,7.30,NCP LIMITED
23/04/2020,Transport Related Expenditure,Officers Travel & Subsistence,Fire Corporate Leadership Team,7.30,NCP LIMITED
23/04/2020,Transport Related Expenditure,Officers Travel & Subsistence,Fire Corporate Leadership Team,7.30,NCP LIMITED
23/04/2020,Transport Related Expenditure,Officers Travel & Subsistence,Fire Corporate Leadership Team,7.30,NCP LIMITED
23/04/2020,Transport Related Expenditure,Officers Travel & Subsistence,Fire Corporate Leadership Team,7.30,NCP LIMITED
24/04/2020,Indirect Employee Allowances,Employee Advertising,Talent Learning & Resourcing,217.65,INDEED TEL+35312545907
24/04/2020,Indirect Employee Allowances,Other Training Expenses,HR Apprenticeship Levy Training,79.96,AMZNMktplace
24/04/2020,Indirect Employee Allowances,Other Training Expenses,HR Apprenticeship Levy Training,69.90,AMZNMktplace
27/04/2020,"Supplies, Services & Other Expenses",Professional Fees,Bury Training and Safety Centre,97.20,SQ  RB ARCHITECTURAL H
27/04/2020,"Supplies, Services & Other Expenses",Stationery,Stockport,38.95,WWW.GOOUTDOORS.CO.UK
27/04/2020,"Supplies, Services & Other Expenses",Stationery,Heywood,16.96,WWW.POSTOFFICESHOP.CO.
27/04/2020,"Supplies, Services & Other Expenses",Stationery,Littleborough,21.00,HOLMATRO UK LTD
28/04/2020,Transport Related Expenditure,Officers Travel & Subsistence,Emergency Response Management,11.00,"BULLRING CAR PARK, BIR"
28/04/2020,"Supplies, Services & Other Expenses",Office Equipment,Contingency Planning,106.52,Amazon.co.uk Q76WQ99Y5
28/04/2020,Transport Related Expenditure,Repairs and Maintenance - Transport,Transport Maintenance,110.65,Amazon.co.uk DI6CP3L45
28/04/2020,Transport Related Expenditure,Repairs and Maintenance - Transport,Transport Maintenance,219.60,PAYPAL  BSEENBSAFE
28/04/2020,Transport Related Expenditure,Repairs and Maintenance - Transport,Transport Maintenance,7.79,THE GREEN SPARK PLUG C
28/04/2020,Transport Related Expenditure,Repairs and Maintenance - Transport,Transport Maintenance,12.98,PAYPAL  GRADESIXSUP
28/04/2020,Transport Related Expenditure,Repairs and Maintenance - Transport,Transport Maintenance,14.69,SP   NATIONWIDE TRAILE
28/04/2020,Transport Related Expenditure,Repairs and Maintenance - Transport,Transport Maintenance,28.83,AMZNMktplace
29/04/2020,Transport Related Expenditure,Officers Travel & Subsistence,Mayors Office,17.20,IZ  David Ford
01/05/2020,"Supplies, Services & Other Expenses",Postage,Transport Maintenance,4.66,PARCEL2GO.COM LTD
01/05/2020,"Supplies, Services & Other Expenses",Postage,Transport Maintenance,74.76,WWW.BROWNSGROUP.CO.UK
04/05/2020,Premises Related Expenditure,Responsive Repairs & Maintenance,Hollins,18.50,MAXWELLS DIY
15/05/2020,Premises Related Expenditure,Responsive Repairs & Maintenance,FSHQ Running Costs,12.99,SCREWFIX DIR. LTD
15/05/2020,Premises Related Expenditure,Responsive Repairs & Maintenance,FSHQ Running Costs,5.54,TOOLSTATION LTD
15/05/2020,Premises Related Expenditure,Responsive Repairs & Maintenance,FSHQ Running Costs,13.50,TOOLSTATION LTD
15/05/2020,Premises Related Expenditure,Responsive Repairs & Maintenance,FSHQ Running Costs,23.53,B & Q 1229
15/05/2020,Premises Related Expenditure,Responsive Repairs & Maintenance,FSHQ Running Costs,36.00,TRAVIS PERKINS
19/05/2020,Transport Related Expenditure,Officers Travel & Subsistence,Fire Legal & Policy,17.00,IZ  Hackney carriage d
19/05/2020,Transport Related Expenditure,Officers Travel & Subsistence,Fire Legal & Policy,22.10,PP TAXI
19/05/2020,Transport Related Expenditure,Officers Travel & Subsistence,Fire Legal & Policy,23.10,WALKDEN STN TO
19/05/2020,Transport Related Expenditure,Officers Travel & Subsistence,Fire Legal & Policy,5.50,Q PARK KNOWSLEY PLACE
19/05/2020,"Supplies, Services & Other Expenses",Subsistence,Fire Legal & Policy,39.25,GEO WASHINGTON G & CC
21/05/2020,Premises Related Expenditure,Waste Site Responsive,Waste - Engineering,95.88,ARCO ASHTON UNDER LYNE
21/05/2020,Premises Related Expenditure,Waste Site Responsive,Waste - Engineering,18.41,ARCO ASHTON UNDER LYNE
21/05/2020,Premises Related Expenditure,Responsive Repairs & Maintenance,Manchester Central,17.00,CENTRAL
22/05/2020,Premises Related Expenditure,Responsive Repairs & Maintenance,FSHQ Running Costs,49.99,SCREWFIX MANCHESTER AN
22/05/2020,Premises Related Expenditure,Responsive Repairs & Maintenance,FSHQ Running Costs,16.28,SCREWFIX DIRECT
22/05/2020,Transport Related Expenditure,Fuel,Manchester Central,10.72,ASDA
22/05/2020,"Supplies, Services & Other Expenses",Operational Equipment Consumables,Business Continuity,23.75,PALLET TRUCK PARTS
22/05/2020,"Supplies, Services & Other Expenses",Operational Equipment Consumables,Business Continuity,39.88,AMZNMktplace
22/05/2020,"Supplies, Services & Other Expenses",Operational Equipment Non-Consumables,Business Continuity,177.98,SAFETY LIFTINGEAR VT/M
25/05/2020,"Supplies, Services & Other Expenses",Operational Equipment Consumables,Operations Support,159.80,AMZNMktplace
25/05/2020,"Supplies, Services & Other Expenses",Operational Equipment Non-Consumables,Operations Support,9.90,AMZNMktplace
25/05/2020,"Supplies, Services & Other Expenses",Operational Equipment Non-Consumables,Operations Support,45.98,AMZNMktplace
25/05/2020,"Supplies, Services & Other Expenses",Operational Equipment Non-Consumables,Operations Support,77.61,AMZNMKTPLACE AMAZON.CO
25/05/2020,"Supplies, Services & Other Expenses",Operational Equipment Non-Consumables,Operations Support,80.35,Amazon.co.uk AV7ZX9G95
26/05/2020,"Supplies, Services & Other Expenses",Office Equipment,Bolton North,234.00,SP   BEST GYM EQUIP
26/05/2020,"Supplies, Services & Other Expenses",Laundry,Business Continuity,780.00,AGAR HYGIENE
26/05/2020,Premises Related Expenditure,Responsive Repairs & Maintenance,FSHQ Running Costs,11.99,PAYPAL  MGMPRODUCTS EB
26/05/2020,Premises Related Expenditure,Responsive Repairs & Maintenance,Business Continuity,900.00,DELTA CONTAINERS
26/05/2020,Premises Related Expenditure,Responsive Repairs & Maintenance,FSHQ Running Costs,53.54,PAYPAL  BUYAPARCEL EBA
26/05/2020,"Supplies, Services & Other Expenses",Subsistence,Business Continuity,112.50,STAX TRADE CENTRES LTD
26/05/2020,"Supplies, Services & Other Expenses",Subsistence,Business Continuity,64.30,STAX TRADE CENTRES LTD
27/05/2020,Transport Related Expenditure,Repairs and Maintenance - Transport,Transport Maintenance,198.80,FONEJUNKIE.COM LIM
27/05/2020,Transport Related Expenditure,Repairs and Maintenance - Transport,Transport Maintenance,27.12,WWW.IRONMONGERYDIRECT.
27/05/2020,Transport Related Expenditure,Repairs and Maintenance - Transport,Transport Maintenance,89.51,METROL SPRINGS LTD
27/05/2020,Transport Related Expenditure,Repairs and Maintenance - Transport,Transport Maintenance,199.90,SCREWFIX DIRECT
27/05/2020,Transport Related Expenditure,Repairs and Maintenance - Transport,Transport Maintenance,249.90,PAYPAL  TYRONEWHEEL
27/05/2020,Transport Related Expenditure,Repairs and Maintenance - Transport,Transport Maintenance,106.99,EXPRESS MATTING SE
27/05/2020,Transport Related Expenditure,Repairs and Maintenance - Transport,Transport Maintenance,22.68,Amazon.co.uk IZ91Y6AP5
27/05/2020,Transport Related Expenditure,Repairs and Maintenance - Transport,Transport Maintenance,54.52,WWW.RAPIDWELDING.COM
27/05/2020,Transport Related Expenditure,Repairs and Maintenance - Transport,Transport Maintenance,1.90,L & S ENGINEERS LTD
27/05/2020,Transport Related Expenditure,Repairs and Maintenance - Transport,Transport Maintenance,-106.99,EXPRESS MATTING SE
27/05/2020,Transport Related Expenditure,Repairs and Maintenance - Transport,Transport Maintenance,102.15,MAP UK
27/05/2020,Transport Related Expenditure,Repairs and Maintenance - Transport,Transport Maintenance,184.32,MAP UK
27/05/2020,Transport Related Expenditure,Repairs and Maintenance - Transport,Transport Maintenance,8.80,WWW.WESTERNTOWING.CO.U
27/05/2020,Transport Related Expenditure,Repairs and Maintenance - Transport,Transport Maintenance,70.00,PAYPAL  HOWETOOLSLT
27/05/2020,Transport Related Expenditure,Repairs and Maintenance - Transport,Transport Maintenance,57.35,www.lsengineers.co.uk
27/05/2020,Transport Related Expenditure,Repairs and Maintenance - Transport,Transport Maintenance,42.53,WWW.BERGER-TOOLS.CO.UK
27/05/2020,Transport Related Expenditure,Repairs and Maintenance - Transport,Transport Maintenance,-27.12,WWW.IRONMONGERYDIRECT.
27/05/2020,"Supplies, Services & Other Expenses",Computer Software,ICT Technology,11.99,1 AND 1 IONOS LTD
28/05/2020,Indirect Employee Allowances,Other Training Expenses,HR Apprenticeship Levy Training,148.20,Amazon.co.uk 8R84329P5
28/05/2020,"Supplies, Services & Other Expenses",Operational Equipment Consumables,Operational Training,11.50,AMZNMktplace
28/05/2020,"Supplies, Services & Other Expenses",Operational Equipment Consumables,Operational Training,12.95,AMZNMKTPLACE AMAZON.CO
28/05/2020,Transport Related Expenditure,Officers Travel & Subsistence,Operational Training,6.70,M6 TOLL
28/05/2020,"Supplies, Services & Other Expenses",Subsistence,Operational Training,13.49,GREEN MAN
29/05/2020,"Supplies, Services & Other Expenses",Digital,Waste - Behavioural Change,100.00,Twitter Online Ads
29/05/2020,"Supplies, Services & Other Expenses",Digital,Waste - Behavioural Change,20.28,MAILCHIMP    MONTHLY
29/05/2020,"Supplies, Services & Other Expenses",Digital,Waste - Behavioural Change,400.00,FACEBK  P7JL3SS2R2
29/05/2020,"Supplies, Services & Other Expenses",Digital,Waste - Behavioural Change,103.63,Twitter Online Ads
29/05/2020,"Supplies, Services & Other Expenses",Digital,Waste - Behavioural Change,55.34,FACEBK  S6J22SA3R2
29/05/2020,"Supplies, Services & Other Expenses",Digital,Waste - Behavioural Change,296.37,Twitter Online Ads
02/06/2020,Transport Related Expenditure,Repairs and Maintenance - Transport,Transport Maintenance,205.00,AMZNMktplace
02/06/2020,"Supplies, Services & Other Expenses",Computer Hardware,ICT Technology,89.97,AMZNMktplace
03/06/2020,"Supplies, Services & Other Expenses",Operational Equipment Non-Consumables,Breathing Apparatus Dept,246.00,RESMAR LTD
04/06/2020,"Supplies, Services & Other Expenses",Laundry,Business Continuity,7.80,AGAR HYGIENE
04/06/2020,"Supplies, Services & Other Expenses",Laundry,Business Continuity,772.20,AGAR HYGIENE
05/06/2020,"Supplies, Services & Other Expenses",Stationery,Contingency Planning,34.99,Amazon.co.uk UT6OD2QQ5
05/06/2020,Premises Related Expenditure,Responsive Repairs & Maintenance,FSHQ Running Costs,21.54,GEORGE HILL OLDHAM LIM
05/06/2020,Premises Related Expenditure,Responsive Repairs & Maintenance,FSHQ Running Costs,59.99,MUR-FIX LTD
05/06/2020,Premises Related Expenditure,Responsive Repairs & Maintenance,FSHQ Running Costs,39.98,SCREWFIX DIRECT
08/06/2020,Transport Related Expenditure,Repairs and Maintenance - Transport,Transport Maintenance,19.85,PAYPAL  AXMINSTERTC
08/06/2020,Transport Related Expenditure,Repairs and Maintenance - Transport,Transport Maintenance,15.98,AMZNMKTPLACE AMAZON.CO
08/06/2020,Transport Related Expenditure,Repairs and Maintenance - Transport,Transport Maintenance,54.99,Amazon.co.uk CF4RS2Y55
08/06/2020,Transport Related Expenditure,Repairs and Maintenance - Transport,Transport Maintenance,106.08,PAYPAL  DUN BRI GRP
08/06/2020,Transport Related Expenditure,Repairs and Maintenance - Transport,Transport Maintenance,38.64,AMZNMktplace
08/06/2020,Transport Related Expenditure,Repairs and Maintenance - Transport,Transport Maintenance,19.99,PAYPAL  BISONPARTSL
08/06/2020,Transport Related Expenditure,Repairs and Maintenance - Transport,Transport Maintenance,-6.56,PAYPAL  ALTERNATE
08/06/2020,Transport Related Expenditure,Repairs and Maintenance - Transport,Transport Maintenance,56.16,AMZNMktplace
08/06/2020,Transport Related Expenditure,Repairs and Maintenance - Transport,Transport Maintenance,139.69,Amazon.co.uk 0C5BL99Z5
08/06/2020,Transport Related Expenditure,Repairs and Maintenance - Transport,Transport Maintenance,15.60,Amazon.co.uk MC5VH7SU5
08/06/2020,Transport Related Expenditure,Repairs and Maintenance - Transport,Transport Maintenance,107.50,PAYPAL  NORFOLKSAWS
08/06/2020,Transport Related Expenditure,Repairs and Maintenance - Transport,Transport Maintenance,5.30,AMZNMktplace
08/06/2020,Transport Related Expenditure,Repairs and Maintenance - Transport,Transport Maintenance,71.81,AMZNMKTPLACE AMAZON.CO
08/06/2020,Transport Related Expenditure,Repairs and Maintenance - Transport,Transport Maintenance,17.70,PAYPAL  LSENGINEERS
08/06/2020,Transport Related Expenditure,Repairs and Maintenance - Transport,Transport Maintenance,70.03,IN LINE FILTERS
08/06/2020,Transport Related Expenditure,Repairs and Maintenance - Transport,Transport Maintenance,6.17,AMZNMktplace
08/06/2020,Transport Related Expenditure,Repairs and Maintenance - Transport,Transport Maintenance,7.99,Amazon Prime O59M87675
08/06/2020,Transport Related Expenditure,Repairs and Maintenance - Transport,Transport Maintenance,10.49,AMZNMktplace
08/06/2020,Transport Related Expenditure,Repairs and Maintenance - Transport,Transport Maintenance,4.19,PAYPAL  SPARKSWAREH
08/06/2020,Transport Related Expenditure,Repairs and Maintenance - Transport,Transport Maintenance,9.99,AMZNMKTPLACE AMAZON.CO
08/06/2020,Transport Related Expenditure,Repairs and Maintenance - Transport,Transport Maintenance,41.88,AMZNMktplace
08/06/2020,Transport Related Expenditure,Repairs and Maintenance - Transport,Transport Maintenance,10.99,AMZNMktplace
08/06/2020,Transport Related Expenditure,Repairs and Maintenance - Transport,Transport Maintenance,8.49,AMZNMktplace
08/06/2020,Transport Related Expenditure,Repairs and Maintenance - Transport,Transport Maintenance,24.59,PAYPAL  GS PRODUCTS
08/06/2020,Transport Related Expenditure,Repairs and Maintenance - Transport,Transport Maintenance,77.86,WWW.HTSSPARES.COM
08/06/2020,Transport Related Expenditure,Repairs and Maintenance - Transport,Transport Maintenance,31.10,Amazon.co.uk 495A61WN5
08/06/2020,Transport Related Expenditure,Repairs and Maintenance - Transport,Transport Maintenance,6.17,AMZNMktplace
08/06/2020,Transport Related Expenditure,Repairs and Maintenance - Transport,Transport Maintenance,3.11,AMZNMktplace
08/06/2020,Transport Related Expenditure,Repairs and Maintenance - Transport,Transport Maintenance,94.00,AMZNMktplace
08/06/2020,Transport Related Expenditure,Repairs and Maintenance - Transport,Transport Maintenance,29.94,Amazon.co.uk RG8BT0XB5
08/06/2020,Transport Related Expenditure,Repairs and Maintenance - Transport,Transport Maintenance,49.06,PAYPAL  ALTERNATE
08/06/2020,"Supplies, Services & Other Expenses",Computer Software,Community Safety Training & Development Team,384.00,SurveyMonkey
08/06/2020,"Supplies, Services & Other Expenses",Digital,"Communication, Media & PR",31.21,ISSUU
09/06/2020,"Supplies, Services & Other Expenses",Operational Equipment Non-Consumables,Operations Support,187.31,FIREPROTECT
10/06/2020,"Supplies, Services & Other Expenses",Subsistence,Stalybridge,24.00,TESCO STORE 3202
11/06/2020,"Supplies, Services & Other Expenses",Stationery,Operational Training,20.34,Amazon.co.uk M180Q13N4
11/06/2020,"Supplies, Services & Other Expenses",Office Equipment,Operational Training,70.48,AMZNMktplace
15/06/2020,"Supplies, Services & Other Expenses",Operational Equipment Non-Consumables,Business Continuity,407.95,TACKLESTORE LTD
15/06/2020,"Supplies, Services & Other Expenses",Stationery,Philips Park,17.99,AMZNMktplace
15/06/2020,"Supplies, Services & Other Expenses",Stationery,Philips Park,3.00,TESCO STORES 5128
15/06/2020,Transport Related Expenditure,Repairs and Maintenance - Transport,Transport Maintenance,10.49,Amazon.co.uk QG59I89X5
15/06/2020,Transport Related Expenditure,Repairs and Maintenance - Transport,Transport Maintenance,13.02,Amazon.co.uk PW2G26KI5
15/06/2020,Transport Related Expenditure,Repairs and Maintenance - Transport,Transport Maintenance,7.53,AMZNMKTPLACE AMAZON.CO
15/06/2020,Transport Related Expenditure,Repairs and Maintenance - Transport,Transport Maintenance,198.80,FONEJUNKIE.COM LIM
15/06/2020,Transport Related Expenditure,Repairs and Maintenance - Transport,Transport Maintenance,14.00,ALLTRUCKTRAILERPARTSUK
15/06/2020,"Supplies, Services & Other Expenses",Digital,Waste - Behavioural Change,20.41,MAILCHIMP    MONTHLY
15/06/2020,"Supplies, Services & Other Expenses",Professional Fees,Enforcement Manchester,6.00,LAND REGISTRY
15/06/2020,"Supplies, Services & Other Expenses",Professional Fees,Enforcement Manchester,6.00,LAND REGISTRY
15/06/2020,"Supplies, Services & Other Expenses",Professional Fees,Enforcement Manchester,6.00,LAND REGISTRY
15/06/2020,"Supplies, Services & Other Expenses",Professional Fees,Enforcement Manchester,6.00,LAND REGISTRY
15/06/2020,"Supplies, Services & Other Expenses",Professional Fees,Enforcement Manchester,41.77,ROYAL MAIL ONLINE SHOP
16/06/2020,Transport Related Expenditure,Repairs and Maintenance - Transport,Transport Maintenance,14.94,AMZNMktplace
16/06/2020,Transport Related Expenditure,Repairs and Maintenance - Transport,Transport Maintenance,41.95,WWW.UK.INSIGHT.COM
16/06/2020,Premises Related Expenditure,Waste Site Responsive,Waste - Engineering,288.05,BOLTON LOCK COMPANY LD
16/06/2020,Premises Related Expenditure,Responsive Repairs & Maintenance,FSHQ Running Costs,37.37,SCREWFIX DIRECT
16/06/2020,Premises Related Expenditure,Responsive Repairs & Maintenance,FSHQ Running Costs,69.98,SCREWFIX DIRECT
16/06/2020,Premises Related Expenditure,Responsive Repairs & Maintenance,FSHQ Running Costs,6.79,SCREWFIX DIRECT
16/06/2020,Premises Related Expenditure,Responsive Repairs & Maintenance,FSHQ Running Costs,8.99,SELCO TRADING CTR
16/06/2020,Premises Related Expenditure,Responsive Repairs & Maintenance,FSHQ Running Costs,36.27,SCREWFIX DIRECT
16/06/2020,Premises Related Expenditure,Responsive Repairs & Maintenance,FSHQ Running Costs,25.01,SCREWFIX DIRECT
16/06/2020,Transport Related Expenditure,Repairs and Maintenance - Transport,Transport Maintenance,32.98,AMZNMktplace
16/06/2020,Transport Related Expenditure,Repairs and Maintenance - Transport,Transport Maintenance,222.27,PAYPAL  EIBMARKTCOM
16/06/2020,Transport Related Expenditure,Repairs and Maintenance - Transport,Transport Maintenance,43.50,PAYPAL  DMRTAUTOMOT
16/06/2020,Transport Related Expenditure,Repairs and Maintenance - Transport,Transport Maintenance,7.49,AMZNMKTPLACE AMAZON.CO
16/06/2020,Transport Related Expenditure,Repairs and Maintenance - Transport,Transport Maintenance,52.10,AMZNMKTPLACE AMAZON.CO
16/06/2020,Transport Related Expenditure,Repairs and Maintenance - Transport,Transport Maintenance,46.82,Amazon.co.uk GP1FD35R5
16/06/2020,Transport Related Expenditure,Repairs and Maintenance - Transport,Transport Maintenance,24.90,PAYPAL  JOHNADAMSLT
16/06/2020,Transport Related Expenditure,Repairs and Maintenance - Transport,Transport Maintenance,152.48,PAYPAL  LADEBORDWAN
16/06/2020,Transport Related Expenditure,Repairs and Maintenance - Transport,Transport Maintenance,7.99,Amazon Prime HF9QT8OD5
16/06/2020,Transport Related Expenditure,Repairs and Maintenance - Transport,Transport Maintenance,189.00,AMZ Powertool World
16/06/2020,Transport Related Expenditure,Repairs and Maintenance - Transport,Transport Maintenance,99.70,AMZNMKTPLACE AMAZON.CO
16/06/2020,Transport Related Expenditure,Repairs and Maintenance - Transport,Transport Maintenance,27.90,Amazon.co.uk ZC8LU2CB5
16/06/2020,Transport Related Expenditure,Repairs and Maintenance - Transport,Transport Maintenance,28.95,AMZNMKTPLACE AMAZON.CO
16/06/2020,Transport Related Expenditure,Repairs and Maintenance - Transport,Transport Maintenance,9.72,PAYPAL  HAMDONSOM
16/06/2020,"Supplies, Services & Other Expenses",Subsistence,Fire Corporate Leadership Team,26.95,AMZNMktplace
16/06/2020,Premises Related Expenditure,Responsive Repairs & Maintenance,FSHQ Running Costs,12.00,WICKES CLIFTON
16/06/2020,Premises Related Expenditure,Responsive Repairs & Maintenance,FSHQ Running Costs,38.03,STG-ELECTRIC.CO.UK
16/06/2020,Premises Related Expenditure,Responsive Repairs & Maintenance,FSHQ Running Costs,81.52,WICKES CLIFTON
16/06/2020,Premises Related Expenditure,Responsive Repairs & Maintenance,FSHQ Running Costs,56.77,B & Q 1057
16/06/2020,Premises Related Expenditure,Responsive Repairs & Maintenance,FSHQ Running Costs,60.80,B & Q 1190
16/06/2020,Premises Related Expenditure,Responsive Repairs & Maintenance,FSHQ Running Costs,64.29,B & Q 1190
16/06/2020,Premises Related Expenditure,Responsive Repairs & Maintenance,Oldham,145.09,WWW.KEYSIGNSUK.CO.UK
16/06/2020,Premises Related Expenditure,Responsive Repairs & Maintenance,Oldham,119.99,CENTRAL SOURCE LTD
16/06/2020,Premises Related Expenditure,Responsive Repairs & Maintenance,Heywood,28.85,CENTRAL SOURCE LTD
16/06/2020,Premises Related Expenditure,Responsive Repairs & Maintenance,Salford,32.99,SCREWFIX DIRECT
16/06/2020,Premises Related Expenditure,Programmed Repairs & Maintenance,Operational Training,144.00,R&R SECURITY & HAR
16/06/2020,"Supplies, Services & Other Expenses",Car Park fees,Brigade Property Services,5.00,NCP LIMITED
16/06/2020,"Supplies, Services & Other Expenses",Postage,Business Continuity,15.59,DPD WL
16/06/2020,"Supplies, Services & Other Expenses",Postage,Business Continuity,15.59,DPD WL
16/06/2020,"Supplies, Services & Other Expenses",Postage,Business Continuity,15.59,DPD WL
16/06/2020,"Supplies, Services & Other Expenses",Postage,Business Continuity,15.59,DPD WL
16/06/2020,"Supplies, Services & Other Expenses",Postage,Business Continuity,15.59,DPD WL
16/06/2020,"Supplies, Services & Other Expenses",Postage,Business Continuity,15.59,DPD WL
16/06/2020,"Supplies, Services & Other Expenses",Postage,Business Continuity,15.59,DPD WL
16/06/2020,"Supplies, Services & Other Expenses",Subsistence,Business Continuity,27.98,AMZNMktplace
16/06/2020,"Supplies, Services & Other Expenses",Subsistence,Littleborough,31.14,TESCO STORE 2744
16/06/2020,"Supplies, Services & Other Expenses",Subsistence,Littleborough,36.30,TESCO STORE 2744
16/06/2020,"Supplies, Services & Other Expenses",Subsistence,Stalybridge,3.00,TESCO PFS 5665
17/06/2020,Indirect Employee Allowances,Other Training Expenses,HR Apprenticeship Levy Training,468.00,EB  WEBINAR SERIES UND
17/06/2020,Transport Related Expenditure,Repairs and Maintenance - Transport,Transport Maintenance,9.44,ROBINS AND DAY PARTS N
17/06/2020,Transport Related Expenditure,Vehicle Leasing,Covid 19 - Temporary Resting Place,-144.06,SALFORD VAN HIRE LTD
17/06/2020,Transport Related Expenditure,Vehicle Leasing,Covid 19 - Temporary Resting Place,364.00,SALFORD VAN HIRE LTD
17/06/2020,Transport Related Expenditure,Vehicle Leasing,Covid 19 - Temporary Resting Place,364.00,SALFORD VAN HIRE LTD
17/06/2020,Transport Related Expenditure,Vehicle Leasing,Covid 19 - Temporary Resting Place,-148.28,SALFORD VAN HIRE LTD
17/06/2020,"Supplies, Services & Other Expenses",Computer Software,ICT Technology,85.80,1 AND 1 IONOS LTD
17/06/2020,"Supplies, Services & Other Expenses",Operational Equipment Consumables,Irlam,11.00,MWR SALES LTD
17/06/2020,Premises Related Expenditure,Responsive Repairs & Maintenance,FSHQ Running Costs,23.49,SCREWFIX DIRECT
17/06/2020,Premises Related Expenditure,Responsive Repairs & Maintenance,FSHQ Running Costs,5.52,SCREWFIX DIRECT
17/06/2020,Premises Related Expenditure,Responsive Repairs & Maintenance,FSHQ Running Costs,53.28,SCREWFIX DIRECT
17/06/2020,Premises Related Expenditure,Responsive Repairs & Maintenance,FSHQ Running Costs,9.99,SCREWFIX DIRECT
17/06/2020,Premises Related Expenditure,Responsive Repairs & Maintenance,FSHQ Running Costs,29.99,SCREWFIX DIRECT
17/06/2020,"Supplies, Services & Other Expenses",Subsistence,Salford & Trafford Borough Command,11.25,ALDI STORES
18/06/2020,Premises Related Expenditure,Responsive Repairs & Maintenance,FSHQ Running Costs,57.78,SCREWFIX DIRECT
18/06/2020,Premises Related Expenditure,Responsive Repairs & Maintenance,FSHQ Running Costs,30.48,B & Q 1229
18/06/2020,Premises Related Expenditure,Responsive Repairs & Maintenance,FSHQ Running Costs,276.00,FLOREEDA FABRICATI
18/06/2020,Premises Related Expenditure,Responsive Repairs & Maintenance,FSHQ Running Costs,21.99,SCREWFIX DIRECT
18/06/2020,Transport Related Expenditure,Officers Travel & Subsistence,Emergency Response Management,6.70,M6 TOLL
18/06/2020,"Supplies, Services & Other Expenses",Subsistence,Emergency Response Management,18.66,MCDONALDS
18/06/2020,"Supplies, Services & Other Expenses",Visual Aids Equipment,Operational Training,53.48,AMZNMktplace
18/06/2020,"Supplies, Services & Other Expenses",Subsistence,Youth Engagement,32.00,CENTRAL
22/06/2020,"Supplies, Services & Other Expenses",Operational Equipment Consumables,Operations Support,29.98,BOOTS 2301
22/06/2020,"Supplies, Services & Other Expenses",Operational Equipment Non-Consumables,Operations Support,12.42,Amazon.co.uk U79T44MN5
22/06/2020,"Supplies, Services & Other Expenses",Operational Equipment Non-Consumables,Operations Support,125.00,AMZ HeliguyUK
22/06/2020,Transport Related Expenditure,Repairs and Maintenance - Transport,Transport Maintenance,116.38,WWW.CASTORSONLINE.CO.U
22/06/2020,Transport Related Expenditure,Repairs and Maintenance - Transport,Transport Maintenance,20.30,VITAL PARTS LTD
22/06/2020,Transport Related Expenditure,Repairs and Maintenance - Transport,Transport Maintenance,23.52,www.lsengineers.co.uk
23/06/2020,"Supplies, Services & Other Expenses",Postage,Business Continuity,15.59,DPD WL
24/06/2020,Transport Related Expenditure,Repairs and Maintenance - Transport,Transport Maintenance,159.00,PAYPAL  WM MOORE
24/06/2020,Transport Related Expenditure,Repairs and Maintenance - Transport,Transport Maintenance,24.42,www.lsengineers.co.uk
24/06/2020,Transport Related Expenditure,Repairs and Maintenance - Transport,Transport Maintenance,29.48,AMZNMKTPLACE AMAZON.CO
24/06/2020,Transport Related Expenditure,Repairs and Maintenance - Transport,Transport Maintenance,88.08,WWW.S3I.CO.UK
24/06/2020,Transport Related Expenditure,Repairs and Maintenance - Transport,Transport Maintenance,29.45,www.lsengineers.co.uk
24/06/2020,Transport Related Expenditure,Repairs and Maintenance - Transport,Transport Maintenance,62.00,Amazon.co.uk 5N61Z8YS5
24/06/2020,Transport Related Expenditure,Repairs and Maintenance - Transport,Transport Maintenance,316.80,WWW.HCE-UK.COM
24/06/2020,Transport Related Expenditure,Repairs and Maintenance - Transport,Transport Maintenance,3.24,Amazon.co.uk X09IV4X15
24/06/2020,Transport Related Expenditure,Repairs and Maintenance - Transport,Transport Maintenance,10.80,AMZNMKTPLACE AMAZON.CO
24/06/2020,Transport Related Expenditure,Repairs and Maintenance - Transport,Transport Maintenance,39.99,AMZNMktplace
24/06/2020,Transport Related Expenditure,Repairs and Maintenance - Transport,Transport Maintenance,20.50,SP   NATIONWIDE TRAILE
24/06/2020,"Supplies, Services & Other Expenses",Operational Equipment Non-Consumables,Operations Support,37.66,Amazon.co.uk HA3B73XH5
24/06/2020,"Supplies, Services & Other Expenses",Operational Equipment Non-Consumables,Operations Support,19.14,Amazon.co.uk 0I8GB36X5
24/06/2020,"Supplies, Services & Other Expenses",Operational Equipment Non-Consumables,Operations Support,29.98,AMZNMktplace
24/06/2020,"Supplies, Services & Other Expenses",Periodicals & Magazines,"Communication, Media & PR",59.15,MAILCHIMP    MONTHLY
25/06/2020,Transport Related Expenditure,Officers Travel & Subsistence,Leigh Technical Services,-135.37,RENTALCARS.COM
25/06/2020,"Supplies, Services & Other Expenses",Postage,Transport Maintenance,7.31,PARCEL2GO.COM LTD
25/06/2020,"Supplies, Services & Other Expenses",Detection Identification and Monitoring,Resilience,27.43,AMZNMktplace
25/06/2020,Transport Related Expenditure,Repairs and Maintenance - Transport,Transport Maintenance,360.08,CALDER LTD
26/06/2020,"Supplies, Services & Other Expenses",PPE Maintenance,Business Continuity,"3,318.00",DELIVER NET LTD
26/06/2020,"Supplies, Services & Other Expenses",PPE Maintenance,Business Continuity,"3,318.00",DELIVER NET LTD
26/06/2020,"Supplies, Services & Other Expenses",PPE Maintenance,Business Continuity,"15,408.00",HUNTER APPAREL SOLUTIO
26/06/2020,"Supplies, Services & Other Expenses",PPE Maintenance,Business Continuity,"9,954.00",DELIVER NET LTD
26/06/2020,"Supplies, Services & Other Expenses",PPE Maintenance,Business Continuity,"3,318.00",DELIVER NET LTD
26/06/2020,"Supplies, Services & Other Expenses",PPE Maintenance,Business Continuity,"4,866.00",HUNTER APPAREL SOLUTIO
26/06/2020,"Supplies, Services & Other Expenses",PPE Maintenance,Business Continuity,"3,318.00",DELIVER NET LTD
26/06/2020,"Supplies, Services & Other Expenses",PPE Maintenance,Business Continuity,"3,318.00",DELIVER NET LTD
26/06/2020,"Supplies, Services & Other Expenses",PPE Maintenance,Business Continuity,"3,318.00",DELIVER NET LTD
26/06/2020,"Supplies, Services & Other Expenses",PPE Maintenance,Business Continuity,"9,954.00",DELIVER NET LTD
26/06/2020,"Supplies, Services & Other Expenses",PPE Maintenance,Business Continuity,"3,318.00",DELIVER NET LTD
26/06/2020,"Supplies, Services & Other Expenses",PPE Maintenance,Business Continuity,"2,350.00",HUNTER APPAREL SOLUTIO
26/06/2020,"Supplies, Services & Other Expenses",PPE Maintenance,Business Continuity,"11,490.00",HUNTER APPAREL SOLUTIO
26/06/2020,"Supplies, Services & Other Expenses",PPE Maintenance,Business Continuity,"9,837.00",HUNTER APPAREL SOLUTIO
26/06/2020,"Supplies, Services & Other Expenses",PPE Maintenance,Business Continuity,"3,318.00",DELIVER NET LTD
26/06/2020,"Supplies, Services & Other Expenses",PPE Maintenance,Business Continuity,"3,318.00",DELIVER NET LTD
26/06/2020,"Supplies, Services & Other Expenses",PPE Maintenance,Business Continuity,"3,318.00",DELIVER NET LTD
26/06/2020,"Supplies, Services & Other Expenses",PPE Maintenance,Business Continuity,"3,318.00",DELIVER NET LTD
26/06/2020,"Supplies, Services & Other Expenses",Stationery,Finance - Accountancy,29.94,AMZNMktplace
26/06/2020,"Supplies, Services & Other Expenses",Computer Hardware,ICT Technology,33.98,AMZNMKTPLACE AMAZON.CO
26/06/2020,"Supplies, Services & Other Expenses",Computer Hardware,ICT Technology,57.98,AMZNMKTPLACE AMAZON.CO
29/06/2020,"Supplies, Services & Other Expenses",Stationery,ICT Technology,499.00,Amazon.co.uk AZ0K77DT5
29/06/2020,"Supplies, Services & Other Expenses",Computer Hardware,ICT Technology,33.98,Amazon.co.uk SJ4GG9XM5
29/06/2020,"Supplies, Services & Other Expenses",Computer Hardware,ICT Technology,262.99,Amazon.co.uk MM20H2VG5
29/06/2020,"Supplies, Services & Other Expenses",Computer Software,Policies & Procedures,260.55,FS  TechSmith
29/06/2020,"Supplies, Services & Other Expenses",Computer Hardware,Policies & Procedures,59.99,AMZNMktplace
29/06/2020,"Supplies, Services & Other Expenses",Computer Hardware,Policies & Procedures,186.44,AMZNMktplace
29/06/2020,"Supplies, Services & Other Expenses",Computer Hardware,Policies & Procedures,16.94,ARGOS LTD
29/06/2020,"Supplies, Services & Other Expenses",Computer Hardware,Policies & Procedures,54.99,AMZNMktplace
30/06/2020,"Supplies, Services & Other Expenses",Subsistence,Bolton North,12.68,TESCO STORE 3202
30/06/2020,"Supplies, Services & Other Expenses",Subsistence,Bolton North,3.00,TESCO PFS 5665
30/06/2020,"Supplies, Services & Other Expenses",Subsistence,Irlam,60.00,TESCO STORES 6342
